fUST/lending_fUST_20250901
["ID","MTS","AMOUNT","RATE_DAILY","PERIOD"]
[382603190,1756677038156,-626.02,0.00016504,2]
[382603191,1756677038165,-565.13,0.00016504,2]
[382603194,1756677038175,-480.0,0.00016504,2]
[382603195,1756677038184,-613.83,0.00016504,2]
[382603197,1756677038193,-480.0,0.00016504,2]
[382603200,1756677038203,-1657.54,0.00016504,2]
[382603201,1756677038212,-614.92,0.00016504,2]
[382603203,1756677038221,-480.0,0.00016504,2]
[382603205,1756677038231,-506.51,0.00016504,2]
[382603208,1756677038241,-1008.3,0.00016504,2]
[382603209,1756677038250,-4100.22,0.00016504,2]
[382603211,1756677038259,-706.88,0.00016504,2]
[382603213,1756677038268,-480.0,0.00016504,2]
[382603215,1756677038277,-480.0,0.00016504,2]
[382603217,1756677038287,-480.0,0.00016504,2]
[382603219,1756677038296,-587.23,0.00016504,2]
[382603221,1756677038305,-480.0,0.00016504,2]
[382603223,1756677038315,-766.0,0.00016504,2]
[382603225,1756677038324,-480.0,0.00016504,2]
[382603227,1756677038333,-619.44,0.00016504,2]
[382603229,1756677038343,-480.0,0.00016504,2]
[382603231,1756677038352,-480.0,0.00016504,2]
[382603233,1756677038362,-480.0,0.00016504,2]
[382603235,1756677038371,-480.0,0.00016504,2]
[382603237,1756677038381,-500.0,0.00016504,2]
[382603239,1756677038390,-500.0,0.00016504,2]
[382603241,1756677038400,-500.0,0.00016504,2]
[382603243,1756677038410,-480.0,0.00016504,2]
[382603245,1756677038420,-3238.93,0.00016504,2]
[382603247,1756677038429,-210.46874851,0.00016504,2]
[382603249,1756677038439,-609.25,0.00016504,2]
[382603251,1756677038449,-480.0,0.00016504,2]
[382603253,1756677038458,-3009.36,0.00016504,2]
[382603255,1756677038468,-1528.52,0.00016504,2]
[382603257,1756677038478,-909.97,0.00016504,2]
[382603259,1756677038488,-686.3,0.00016504,2]
[382603261,1756677038498,-707.75,0.00016504,2]
[382603263,1756677038507,-480.0,0.00016504,2]
[382603265,1756677038520,-480.0,0.00016504,2]
[382603267,1756677038532,-568.84,0.00016504,2]
[382603269,1756677038543,-480.0,0.00016504,2]
[382603271,1756677038554,-480.0,0.00016504,2]
[382603274,1756677038563,-480.0,0.00016504,2]
[382603277,1756677038572,-550.46,0.00016504,2]
[382603280,1756677038581,-695.87,0.00016504,2]
[382603282,1756677038591,-480.0,0.00016504,2]
[382603285,1756677038600,-706.79,0.00016504,2]
[382603288,1756677038609,-480.0,0.00016504,2]
[382603289,1756677038619,-480.0,0.00016504,2]
[382603292,1756677038628,-480.0,0.00016504,2]
[382603294,1756677038637,-674.39,0.00016504,2]
[382603296,1756677038646,-480.0,0.00016504,2]
[382603298,1756677038655,-480.0,0.00016504,2]
[382603300,1756677038665,-808.69,0.00016504,2]
[382603302,1756677038674,-480.0,0.00016504,2]
[382603305,1756677038684,-480.0,0.00016504,2]
[382603307,1756677038693,-894.58,0.00016504,2]
[382603309,1756677038702,-1982.59,0.00016504,2]
[382603311,1756677038712,-755.56,0.00016504,2]
[382603313,1756677038722,-480.0,0.00016504,2]
[382603315,1756677038731,-480.0,0.00016504,2]
[382603317,1756677038741,-705.54,0.00016504,2]
[382603319,1756677038750,-160.0,0.00016505,2]
[382603321,1756677038759,-480.0,0.00016505,2]
[382603323,1756677038768,-480.0,0.00016505,2]
[382603325,1756677038778,-480.0,0.00016505,2]
[382603327,1756677038787,-480.0,0.00016505,2]
[382603329,1756677038796,-480.0,0.00016505,2]
[382603331,1756677038806,-480.0,0.00016505,2]
[382603333,1756677038815,-480.0,0.00016505,2]
[382603335,1756677038824,-480.0,0.00016505,2]
[382603337,1756677038834,-480.0,0.00016505,2]
[382603339,1756677038843,-480.0,0.00016505,2]
[382603341,1756677038852,-487.48883686,0.00016505,2]
[382603343,1756677038862,-480.0,0.00016505,2]
[382603345,1756677038871,-480.0,0.00016505,2]
[382603347,1756677038881,-480.0,0.00016505,2]
[382603349,1756677038891,-602.86568468,0.00016505,2]
[382603351,1756677038900,-480.0,0.00016505,2]
[382603353,1756677038909,-480.0,0.00016505,2]
[382603355,1756677038919,-480.0,0.00016505,2]
[382603357,1756677038928,-480.0,0.00016505,2]
[382603359,1756677038937,-480.0,0.00016505,2]
[382603362,1756677038947,-480.0,0.00016505,2]
[382603363,1756677038956,-480.0,0.00016505,2]
[382603365,1756677038965,-480.0,0.00016505,2]
[382603367,1756677038975,-480.0,0.00016505,2]
[382603369,1756677038984,-480.0,0.00016505,2]
[382603371,1756677038993,-368.24939402,0.00016505,2]
[382603373,1756677039002,-480.0,0.00016505,2]
[382603375,1756677039011,-480.0,0.00016505,2]
[382603377,1756677039020,-480.0,0.00016505,2]
[382603379,1756677039029,-551.66,0.00016505,2]
[382603381,1756677039038,-480.0,0.00016505,2]
[382603383,1756677039047,-480.0,0.00016505,2]
[382603385,1756677039057,-480.0,0.00016505,2]
[382603387,1756677039070,-480.0,0.00016505,2]
[382603389,1756677039081,-480.0,0.00016505,2]
[382603392,1756677039090,-480.0,0.00016505,2]
[382603393,1756677039099,-480.0,0.00016505,2]
[382603395,1756677039109,-480.0,0.00016505,2]
[382603397,1756677039118,-480.0,0.00016505,2]
[382603399,1756677039127,-597.03,0.00016505,2]
[382603401,1756677039137,-614.95,0.00016505,2]
[382603403,1756677039147,-500.0,0.00016505,2]
[382603405,1756677039165,-317.78136051,0.00016505,2]
[382603408,1756677039177,-480.0,0.00016505,2]
[382603410,1756677039193,-480.0,0.00016505,2]
[382603412,1756677039205,-914.39,0.00016505,2]
[382603415,1756677039217,-876.51,0.00016505,2]
[382603417,1756677039227,-480.0,0.00016505,2]
[382603418,1756677039238,-480.0,0.00016505,2]
[382603420,1756677039247,-480.0,0.00016505,2]
[382603422,1756677039255,-480.0,0.00016505,2]
[382603424,1756677039266,-193.73538634,0.00016505,2]
[382603425,1756677039275,-480.0,0.00016505,2]
[382603427,1756677039284,-480.0,0.00016505,2]
[382603429,1756677039293,-480.0,0.00016505,2]
[382603431,1756677039304,-560.95,0.00016505,2]
[382603433,1756677039314,-721.42,0.00016505,2]
[382603435,1756677039323,-574.82,0.00016505,2]
[382603437,1756677039332,-480.0,0.00016505,2]
[382603439,1756677039341,-534.43,0.00016505,2]
[382603441,1756677039351,-481.15,0.00016505,2]
[382603443,1756677039360,-480.0,0.00016505,2]
[382603445,1756677039370,-621.59548838,0.00016505,2]
[382603447,1756677039379,-480.0,0.00016505,2]
[382603449,1756677039389,-480.0,0.00016505,2]
[382603451,1756677039398,-480.0,0.00016505,2]
[382603453,1756677039408,-480.0,0.00016505,2]
[382603455,1756677039417,-480.0,0.00016505,2]
[382603458,1756677039426,-480.0,0.00016505,2]
[382603460,1756677039436,-743.98,0.00016505,2]
[382603462,1756677039445,-480.0,0.00016505,2]
[382603464,1756677039455,-480.0,0.00016505,2]
[382603466,1756677039464,-502.95,0.00016505,2]
[382603468,1756677039473,-480.0,0.00016505,2]
[382603470,1756677039482,-774.43,0.00016505,2]
[382603472,1756677039499,-480.0,0.00016505,2]
[382603474,1756677039509,-480.0,0.00016505,2]
[382603476,1756677039518,-860.79,0.00016505,2]
[382603479,1756677039527,-480.0,0.00016505,2]
[382603481,1756677039536,-480.0,0.00016505,2]
[382603483,1756677039551,-732.44,0.00016505,2]
[382603485,1756677039561,-1347.77,0.00016505,2]
[382603487,1756677039571,-480.0,0.00016505,2]
[382603489,1756677039580,-480.0,0.00016505,2]
[382603491,1756677039591,-525.03,0.00016505,2]
[382603493,1756677039600,-480.0,0.00016505,2]
[382603495,1756677039611,-480.0,0.00016505,2]
[382603497,1756677039620,-1046.11,0.00016505,2]
[382603499,1756677039630,-562.15,0.00016505,2]
[382603501,1756677039640,-480.0,0.00016505,2]
[382603503,1756677039649,-480.0,0.00016505,2]
[382603505,1756677039659,-500.0,0.00016505,2]
[382603507,1756677039668,-480.0,0.00016505,2]
[382603509,1756677039678,-480.0,0.00016505,2]
[382603511,1756677039687,-480.0,0.00016505,2]
[382603513,1756677039697,-614.67,0.00016505,2]
[382603515,1756677039707,-480.0,0.00016505,2]
[382603517,1756677039721,-480.0,0.00016505,2]
[382603519,1756677039733,-480.0,0.00016505,2]
[382603521,1756677039743,-480.0,0.00016505,2]
[382603523,1756677039752,-480.0,0.00016505,2]
[382603525,1756677039762,-480.0,0.00016505,2]
[382603527,1756677039771,-480.0,0.00016505,2]
[382603529,1756677039781,-480.0,0.00016505,2]
[382603531,1756677039791,-480.0,0.00016505,2]
[382603533,1756677039800,-480.0,0.00016505,2]
[382603535,1756677039809,-480.0,0.00016505,2]
[382603537,1756677039819,-480.0,0.00016505,2]
[382603539,1756677039828,-267.69012047,0.00016506,2]
[382603541,1756677039838,-833.79,0.00016506,2]
[382603543,1756677039847,-480.0,0.00016506,2]
[382603565,1756677040048,-480.0,0.00016506,2]
[382603567,1756677040058,-480.0,0.00016506,2]
[382603569,1756677040067,-480.0,0.00016506,2]
[382603571,1756677040077,-480.0,0.00016506,2]
[382603573,1756677040087,-480.0,0.00016506,2]
[382603575,1756677040096,-480.0,0.00016507,2]
[382603577,1756677040106,-480.0,0.00016507,2]
[382603579,1756677040116,-480.0,0.00016507,2]
[382603581,1756677040125,-1000.0,0.00016548,2]
[382603585,1756677040135,-881.86472336,0.0001663,2]
[382603587,1756677040145,-500.0,0.00016678,2]
[382603589,1756677040154,-1000.0,0.00016679,2]
[382603591,1756677040164,-280.52556936,0.00016769,2]
[382603593,1756677040173,-500.0,0.00016773,2]
[382603595,1756677040184,-500.0,0.00016773,2]
[382603597,1756677040193,-500.0,0.00016773,2]
[382603599,1756677040202,-500.0,0.00016773,2]
[382603601,1756677040211,-261.70406853,0.00016773,2]
[382603603,1756677040220,-480.0,0.00016774,2]
[382603605,1756677040231,-480.0,0.00016774,2]
[382603607,1756677040240,-618.44,0.00016774,2]
[382603609,1756677040250,-776.29,0.00016774,2]
[382603611,1756677040260,-480.0,0.00016774,2]
[382603613,1756677040270,-488.92,0.00016774,2]
[382603615,1756677040279,-838.4,0.00016774,2]
[382603617,1756677040288,-480.0,0.00016775,2]
[382603619,1756677040298,-716.62,0.00016775,2]
[382603621,1756677040307,-480.0,0.00016775,2]
[382603623,1756677040316,-609.2482364,0.00016775,2]
[382603625,1756677040326,-480.0,0.00016775,2]
[382603627,1756677040335,-480.0,0.00016775,2]
[382603629,1756677040344,-480.0,0.00016775,2]
[382603631,1756677040354,-480.0,0.00016775,2]
[382603633,1756677040363,-480.0,0.00016775,2]
[382603635,1756677040372,-480.0,0.00016775,2]
[382603637,1756677040381,-480.16,0.00016775,2]
[382603639,1756677040389,-480.0,0.00016775,2]
[382603641,1756677040399,-480.0,0.00016775,2]
[382603643,1756677040408,-480.0,0.00016775,2]
[382603645,1756677040417,-480.0,0.00016775,2]
[382603647,1756677040426,-480.0,0.00016775,2]
[382603649,1756677040435,-480.0,0.00016775,2]
[382603651,1756677040444,-480.0,0.00016775,2]
[382603652,1756677040453,-480.0,0.00016775,2]
[382603655,1756677040463,-480.0,0.00016775,2]
[382603657,1756677040473,-480.0,0.00016775,2]
[382603659,1756677040482,-480.0,0.00016775,2]
[382603661,1756677040492,-1535.08,0.00016775,2]
[382603662,1756677040502,-480.0,0.00016775,2]
[382603664,1756677040511,-480.0,0.00016775,2]
[382603666,1756677040520,-480.0,0.00016775,2]
[382603669,1756677040530,-480.0,0.00016775,2]
[382603671,1756677040539,-480.0,0.00016775,2]
[382603672,1756677040553,-480.0,0.00016775,2]
[382603674,1756677040565,-480.0,0.00016775,2]
[382603677,1756677040575,-468.1258802,0.00016775,2]
[382603678,1756677040586,-878.57,0.00016775,2]
[382603680,1756677040595,-1356.8,0.00016775,2]
[382603683,1756677040605,-480.0,0.00016775,2]
[382603685,1756677040616,-500.97,0.00016775,2]
[382603687,1756677040627,-1267.7,0.00016775,2]
[382603689,1756677040637,-480.0,0.00016775,2]
[382603691,1756677040646,-480.0,0.00016775,2]
[382603693,1756677040655,-480.0,0.00016776,2]
[382603695,1756677040665,-500.0,0.00016776,2]
[382603697,1756677040674,-500.0,0.00016776,2]
[382603699,1756677040683,-500.0,0.00016776,2]
[382603701,1756677040692,-327.90389469,0.00016777,2]
[382603703,1756677040702,-480.0,0.00016777,2]
[382603704,1756677040711,-480.0,0.00016777,2]
[382603706,1756677040721,-480.0,0.00016777,2]
[382603709,1756677040730,-480.0,0.00016777,2]
[382603711,1756677040740,-480.0,0.00016777,2]
[382603712,1756677040750,-480.0,0.00016777,2]
[382603715,1756677040759,-480.0,0.00016777,2]
[382603716,1756677040769,-480.0,0.00016777,2]
[382603718,1756677040778,-480.0,0.00016777,2]
[382603721,1756677040788,-480.0,0.00016777,2]
[382603722,1756677040797,-480.0,0.00016777,2]
[382603724,1756677040807,-366.90315465,0.00016777,2]
[382603726,1756677040816,-480.0,0.00016777,2]
[382603728,1756677040825,-480.0,0.00016777,2]
[382603730,1756677040835,-480.0,0.00016777,2]
[382603732,1756677040844,-480.0,0.00016777,2]
[382603734,1756677040855,-480.0,0.00016777,2]
[382603736,1756677040864,-480.0,0.00016777,2]
[382603738,1756677040873,-480.0,0.00016777,2]
[382603740,1756677040883,-480.0,0.00016777,2]
[382603742,1756677040892,-282.73421444,0.00016777,2]
[382603744,1756677040902,-480.0,0.00016777,2]
[382603746,1756677040911,-491.55237605,0.00016777,2]
[382603748,1756677040921,-480.0,0.00016777,2]
[382603750,1756677040932,-480.0,0.00016777,2]
[382603752,1756677040941,-480.0,0.00016777,2]
[382603754,1756677040951,-480.0,0.00016777,2]
[382603756,1756677040961,-480.0,0.00016777,2]
[382603758,1756677040970,-972.93,0.00016777,2]
[382603760,1756677040980,-480.0,0.00016777,2]
[382603762,1756677040989,-591.49,0.00016777,2]
[382603764,1756677040998,-480.0,0.00016777,2]
[382603766,1756677041007,-480.0,0.00016777,2]
[382603768,1756677041017,-704.47,0.00016777,2]
[382603770,1756677041026,-447.7088166,0.00016777,2]
[382603772,1756677041035,-839.3,0.00016777,2]
[382603774,1756677041044,-480.0,0.00016777,2]
[382603776,1756677041054,-888.3,0.00016777,2]
[382603778,1756677041063,-777.26,0.00016777,2]
[382603780,1756677041072,-480.0,0.00016777,2]
[382603782,1756677041081,-480.0,0.00016777,2]
[382603784,1756677041090,-480.0,0.00016777,2]
[382603786,1756677041100,-830.74,0.00016777,2]
[382603788,1756677041109,-480.0,0.00016777,2]
[382603790,1756677041119,-480.0,0.00016777,2]
[382603792,1756677041129,-480.0,0.00016777,2]
[382603794,1756677041139,-480.0,0.00016777,2]
[382603796,1756677041149,-618.26,0.00016777,2]
[382603798,1756677041159,-480.0,0.00016777,2]
[382603800,1756677041169,-668.67,0.00016777,2]
[382603802,1756677041178,-480.0,0.00016777,2]
[382603804,1756677041187,-480.0,0.00016777,2]
[382603806,1756677041197,-480.0,0.00016777,2]
[382603808,1756677041206,-480.0,0.00016777,2]
[382603810,1756677041216,-879.71,0.00016777,2]
[382603812,1756677041225,-480.0,0.00016777,2]
[382603814,1756677041235,-480.0,0.00016777,2]
[382603816,1756677041245,-480.0,0.00016777,2]
[382603818,1756677041256,-480.0,0.00016777,2]
[382603820,1756677041265,-480.0,0.00016777,2]
[382603822,1756677041276,-480.0,0.00016777,2]
[382603824,1756677041285,-480.0,0.00016777,2]
[382603826,1756677041294,-480.0,0.00016777,2]
[382603828,1756677041303,-480.0,0.00016777,2]
[382603830,1756677041313,-724.4,0.00016777,2]
[382603832,1756677041322,-735.04,0.00016777,2]
[382603834,1756677041331,-480.0,0.00016777,2]
[382603836,1756677041340,-480.0,0.00016777,2]
[382603838,1756677041349,-809.88,0.00016777,2]
[382603840,1756677041359,-808.44,0.00016777,2]
[382603842,1756677041368,-480.0,0.00016777,2]
[382603844,1756677041377,-665.31,0.00016777,2]
[382603846,1756677041387,-480.0,0.00016777,2]
[382603848,1756677041396,-912.08,0.00016777,2]
[382603850,1756677041405,-941.2,0.00016777,2]
[382603851,1756677041415,-480.0,0.00016777,2]
[382603854,1756677041425,-480.0,0.00016777,2]
[382603855,1756677041435,-333.91199684,0.00016777,2]
[382603857,1756677041444,-1043.97,0.00016777,2]
[382603859,1756677041455,-480.0,0.00016777,2]
[382603861,1756677041464,-480.0,0.00016777,2]
[382603863,1756677041473,-480.0,0.00016777,2]
[382603865,1756677041484,-480.0,0.00016777,2]
[382603867,1756677041494,-505.54,0.00016777,2]
[382603869,1756677041504,-480.0,0.00016777,2]
[382603871,1756677041513,-528.69,0.00016777,2]
[382603873,1756677041521,-480.0,0.00016777,2]
[382603875,1756677041529,-480.0,0.00016777,2]
[382603877,1756677041540,-480.0,0.00016777,2]
[382603879,1756677041551,-480.0,0.00016777,2]
[382603881,1756677041559,-480.0,0.00016777,2]
[382603883,1756677041569,-480.0,0.00016777,2]
[382603885,1756677041578,-1231.86,0.00016777,2]
[382603887,1756677041586,-279.51962436,0.00016777,2]
[382603889,1756677041595,-778.24,0.00016777,2]
[382603891,1756677041605,-480.0,0.00016777,2]
[382603893,1756677041614,-555.6,0.00016777,2]
[382603895,1756677041623,-480.0,0.00016777,2]
[382603897,1756677041634,-480.0,0.00016777,2]
[382603899,1756677041643,-480.0,0.00016777,2]
[382603901,1756677041652,-480.0,0.00016777,2]
[382603903,1756677041662,-480.0,0.00016777,2]
[382603905,1756677041672,-922.61,0.00016777,2]
[382603907,1756677041681,-480.0,0.00016777,2]
[382603909,1756677041691,-480.0,0.00016777,2]
[382603911,1756677041700,-480.0,0.00016777,2]
[382603913,1756677041711,-480.0,0.00016777,2]
[382603915,1756677041720,-530.0,0.00016777,2]
[382603917,1756677041730,-480.0,0.00016777,2]
[382603919,1756677041739,-480.0,0.00016777,2]
[382603921,1756677041748,-480.0,0.00016777,2]
[382603923,1756677041758,-480.0,0.00016777,2]
[382603925,1756677041767,-480.0,0.00016777,2]
[382603927,1756677041776,-480.0,0.00016777,2]
[382603929,1756677041785,-480.0,0.00016777,2]
[382603931,1756677041794,-973.6,0.00016777,2]
[382603933,1756677041803,-480.0,0.00016777,2]
[382603935,1756677041812,-480.0,0.00016778,2]
[382603937,1756677041822,-434.1,0.00016778,2]
[382603939,1756677041832,-480.0,0.00016778,2]
[382603941,1756677041841,-480.0,0.00016778,2]
[382603943,1756677041851,-480.0,0.00016778,2]
[382603945,1756677041860,-480.0,0.00016778,2]
[382603947,1756677041870,-1029.15,0.00016778,2]
[382603949,1756677041879,-547.55,0.00016778,2]
[382603951,1756677041888,-480.0,0.00016778,2]
[382603953,1756677041899,-732.83,0.00016778,2]
[382603955,1756677041909,-544.21,0.00016778,2]
[382603957,1756677041918,-480.0,0.00016778,2]
[382603959,1756677041928,-480.0,0.00016778,2]
[382603961,1756677041938,-480.0,0.00016778,2]
[382603963,1756677041946,-480.0,0.00016778,2]
[382603965,1756677041955,-480.0,0.00016778,2]
[382603968,1756677041965,-480.0,0.00016778,2]
[382603970,1756677041975,-497.23,0.00016778,2]
[382603972,1756677041984,-488.6,0.00016778,2]
[382603973,1756677041994,-480.0,0.00016778,2]
[382603975,1756677042003,-480.0,0.00016778,2]
[382603977,1756677042012,-480.0,0.00016778,2]
[382603979,1756677042021,-626.02,0.00016778,2]
[382603981,1756677042031,-565.13,0.00016778,2]
[382603984,1756677042041,-480.0,0.00016778,2]
[382603985,1756677042050,-613.83,0.00016778,2]
[382603987,1756677042059,-480.0,0.00016778,2]
[382603990,1756677042069,-1657.54,0.00016778,2]
[382603992,1756677042078,-614.92,0.00016778,2]
[382603993,1756677042088,-480.0,0.00016778,2]
[382603995,1756677042098,-506.51,0.00016778,2]
[382603998,1756677042107,-1008.3,0.00016778,2]
[382603999,1756677042116,-4100.22,0.00016778,2]
[382604001,1756677042126,-706.88,0.00016778,2]
[382604003,1756677042136,-480.0,0.00016778,2]
[382604005,1756677042145,-480.0,0.00016778,2]
[382604007,1756677042154,-480.0,0.00016778,2]
[382604009,1756677042163,-587.23,0.00016778,2]
[382604010,1756677042172,-766.0,0.00016778,2]
[382604011,1756677042181,-480.0,0.00016778,2]
[382604012,1756677042190,-619.44,0.00016778,2]
[382604013,1756677042199,-480.0,0.00016778,2]
[382604014,1756677042208,-480.0,0.00016778,2]
[382604015,1756677042218,-480.0,0.00016778,2]
[382604016,1756677042227,-480.0,0.00016778,2]
[382604017,1756677042236,-480.0,0.00016778,2]
[382604018,1756677042245,-3238.93,0.00016778,2]
[382604019,1756677042254,-609.25,0.00016778,2]
[382604020,1756677042263,-480.0,0.00016778,2]
[382604021,1756677042273,-3009.36,0.00016778,2]
[382604022,1756677042281,-1528.52,0.00016778,2]
[382604023,1756677042290,-909.97,0.00016778,2]
[382604024,1756677042299,-686.3,0.00016778,2]
[382604025,1756677042308,-707.75,0.00016778,2]
[382604026,1756677042317,-480.0,0.00016778,2]
[382604027,1756677042326,-480.0,0.00016778,2]
[382604028,1756677042334,-568.84,0.00016778,2]
[382604029,1756677042343,-480.0,0.00016778,2]
[382604030,1756677042352,-480.0,0.00016778,2]
[382604032,1756677042362,-480.0,0.00016778,2]
[382604033,1756677042370,-550.46,0.00016778,2]
[382604034,1756677042379,-695.87,0.00016778,2]
[382604035,1756677042388,-480.0,0.00016778,2]
[382604036,1756677042397,-706.79,0.00016778,2]
[382604037,1756677042406,-480.0,0.00016778,2]
[382604038,1756677042416,-480.0,0.00016778,2]
[382604039,1756677042425,-480.0,0.00016778,2]
[382604040,1756677042435,-674.39,0.00016778,2]
[382604041,1756677042444,-480.0,0.00016778,2]
[382604043,1756677042453,-480.0,0.00016778,2]
[382604045,1756677042463,-808.69,0.00016778,2]
[382604047,1756677042472,-480.0,0.00016778,2]
[382604050,1756677042482,-480.0,0.00016778,2]
[382604052,1756677042492,-894.58,0.00016778,2]
[382604054,1756677042501,-1982.59,0.00016778,2]
[382604056,1756677042511,-755.56,0.00016778,2]
[382604058,1756677042522,-480.0,0.00016778,2]
[382604060,1756677042531,-480.0,0.00016778,2]
[382604062,1756677042541,-705.54,0.00016778,2]
[382604065,1756677042555,-480.0,0.00016779,2]
[382604068,1756677042564,-901.08,0.00016779,2]
[382604071,1756677042574,-578.50855836,0.00016779,2]
[382604074,1756677042583,-882.01,0.00016779,2]
[382604076,1756677042592,-480.0,0.00016779,2]
[382604079,1756677042602,-480.0,0.00016779,2]
[382604081,1756677042611,-862.77,0.00016779,2]
[382604083,1756677042621,-480.0,0.00016779,2]
[382604085,1756677042631,-480.0,0.00016779,2]
[382604087,1756677042641,-480.0,0.00016779,2]
[382604089,1756677042650,-480.0,0.00016779,2]
[382604090,1756677042659,-480.0,0.00016779,2]
[382604092,1756677042669,-480.0,0.00016779,2]
[382604095,1756677042679,-480.0,0.00016779,2]
[382604096,1756677042688,-480.0,0.00016779,2]
[382604098,1756677042698,-480.0,0.00016779,2]
[382604100,1756677042708,-480.0,0.00016779,2]
[382604102,1756677042719,-480.0,0.00016779,2]
[382604105,1756677042729,-480.0,0.00016779,2]
[382604107,1756677042739,-480.0,0.00016779,2]
[382604108,1756677042749,-480.0,0.00016779,2]
[382604110,1756677042760,-480.0,0.00016779,2]
[382604112,1756677042770,-480.0,0.00016779,2]
[382604114,1756677042779,-480.0,0.00016779,2]
[382604116,1756677042788,-480.0,0.00016779,2]
[382604118,1756677042798,-480.0,0.00016779,2]
[382604120,1756677042807,-551.66,0.00016779,2]
[382604122,1756677042816,-480.0,0.00016779,2]
[382604124,1756677042825,-480.0,0.00016779,2]
[382604127,1756677042836,-480.0,0.00016779,2]
[382604129,1756677042847,-480.0,0.00016779,2]
[382604131,1756677042857,-597.03,0.00016779,2]
[382604132,1756677042867,-614.95,0.00016779,2]
[382604134,1756677042876,-500.0,0.00016779,2]
[382604136,1756677042885,-480.0,0.00016779,2]
[382604138,1756677042895,-480.0,0.00016779,2]
[382604140,1756677042904,-914.39,0.00016779,2]
[382604142,1756677042914,-876.51,0.00016779,2]
[382604144,1756677042924,-480.0,0.00016779,2]
[382604146,1756677042935,-480.0,0.00016779,2]
[382604148,1756677042944,-480.0,0.00016779,2]
[382604150,1756677042953,-480.0,0.00016779,2]
[382604152,1756677042962,-480.0,0.00016779,2]
[382604154,1756677042971,-480.0,0.00016779,2]
[382604156,1756677042980,-389.69539873,0.00016779,2]
[382604158,1756677042989,-560.95,0.00016779,2]
[382604160,1756677042999,-721.42,0.00016779,2]
[382604162,1756677043008,-574.82,0.00016779,2]
[382604164,1756677043018,-480.0,0.00016779,2]
[382604166,1756677043027,-534.43,0.00016779,2]
[382604168,1756677043036,-481.15,0.00016779,2]
[382604170,1756677043045,-480.0,0.00016779,2]
[382604172,1756677043055,-480.0,0.00016779,2]
[382604174,1756677043064,-480.0,0.00016779,2]
[382604176,1756677043074,-480.0,0.00016779,2]
[382604178,1756677043083,-587.65353831,0.00016779,2]
[382604180,1756677043091,-743.98,0.00016779,2]
[382604182,1756677043101,-480.0,0.00016779,2]
[382604184,1756677043111,-480.0,0.00016779,2]
[382604186,1756677043120,-502.95,0.00016779,2]
[382604188,1756677043130,-774.43,0.00016779,2]
[382604189,1756677043139,-480.0,0.00016779,2]